Cogmind - Beta 11.1 @@@ ROGUE MODE // 2022.05.19 @ 22:29:22 Player: darki Result: Destroyed by Y-54 Guardian with Gatling Laser Performance ------------- Evolutions (3) 1500 Regions Visited (8) 1600 Robots Destroyed (78) 390 Value Destroyed (2768) 2768 Prototype IDs (26) 520 Alien Tech Used (0) 0 Bonus (2464) 2464 TOTAL SCORE: 9242 Bonus ------- High Alert Combat Kills 907 Follower Combat Kills 1929 Aligned with FarCom 300 Friendly Fire -672 Cogmind --------- Core Integrity 0/700 Matter 290/300 Energy 28/100 System Corruption 10% Temperature Cool (6) Movement Core (50) Location -7/Factory Parts ------- > --- POWER (1) -------- (None) > --- PROPULSION (2) --- (None) > --- UTILITY (6) ------ Weapon Cycler > --- WEAPON (4) ------- (None) > --- INVENTORY (5) ---- (None) Peak State ------------ > --- POWER ------------ Improved Deuterium Engine > --- PROPULSION ------- Heavy Treads > --- UTILITY ---------- Army-in-a-Box > --- WEAPON ----------- Improved Lightning Gun Neutron Cannon Neutron Cannon Bore Cannon > --- INVENTORY -------- Heavy Treads Improved Heat Sink Recoil Stabilizer Weapon Cycler [Rating: 97] Favorites ----------- Power Light Nuclear Core Engine Improved Deuterium Engine Power Core Light Nuclear Core Propulsion Aluminum Leg Treads Heavy Treads Leg Aluminum Leg Hover Unit Combat Airjet Flight Unit Improved VTOL Module Utility Army-in-a-Box Device Army-in-a-Box Storage Small Storage Unit Processor Improved Signal Interpreter Hackware Hacking Suite Protection Medium Reactive Plating Weapon Bore Cannon Energy Gun Particle Gun Energy Cannon Neutron Cannon Ballistic Gun Light Assault Rifle Ballistic Cannon Bore Cannon Launcher Proton Missile Launcher Build | -11 -10 -10 -10 -9 -8 -7 -7 -7 ------- Run | Scr Mat Min Exi Min Mat Fac Was Fac Slots Evolved 6 | . . . . . 4 2 . . Power . | . . . . . . . . . Propulsion . | . . . . . . . . . Utility 4 | . . . . . 4 . . . Weapon 2 | . . . . . . 2 . . Parts Attached 78 | 6 1 5 . 1 21 12 14 18 Power 10 | 1 . 1 . 1 3 1 . 3 Engine 5 | 1 . 1 . 1 1 . . 1 Core 5 | . . . . . 2 1 . 2 Reactor . | . . . . . . . . . Propulsion 13 | 2 . 1 . . 6 2 1 1 Treads 2 | . . . . . . . 1 1 Leg 8 | 2 . . . . 4 2 . . Wheel . | . . . . . . . . . Hover 2 | . . 1 . . 1 . . . Flight 1 | . . . . . 1 . . . Utility 19 | 1 1 . . . 5 5 1 6 Device 11 | . . . . . 2 4 1 4 Storage 4 | 1 . . . . 1 1 . 1 Processor 1 | . . . . . 1 . . . Hackware 2 | . 1 . . . 1 . . . Protection 1 | . . . . . . . . 1 Artifact . | . . . . . . . . . Weapon 36 | 2 . 3 . . 7 4 12 8 Energy Gun 7 | . . . . . 2 1 2 2 Energy Cannon 3 | . . . . . . 1 . 2 Ballistic Gun 11 | 2 . 2 . . 3 . 2 2 Ballistic Cannon 7 | . . . . . 1 2 4 . Launcher 8 | . . 1 . . 1 . 4 2 Special Weapon . | . . . . . . . . . Impact Weapon . | . . . . . . . . . Slashing Weapon . | . . . . . . . . . Piercing Weapon . | . . . . . . . . . Special Melee Weapon . | . . . . . . . . . Unidentified Prototypes 3 | . . . . . 1 . . 2 Corrupted Parts 1 | . . . . . . . . 1 System Corruption 6 | . . . . . . . . 6 Parts Lost 30 | . . 1 . 1 13 . 3 12 Power 4 | . . . . 1 1 . 1 1 Propulsion 7 | . . 1 . . 4 . . 2 Utility 7 | . . . . . 2 . 2 3 Weapon 12 | . . . . . 6 . . 6 Highest Loss Streak 9 | . . 1 . 1 7 . 3 9 To Critical Strikes 1 | . . . . 1 . . . . Average Slot Usage (%) 62 | . 95 99 100 98 51 71 35 51 Engine 4 | . 14 14 14 13 . . . 4 Core 3 | . . . . . 8 7 . . Treads 2 | . . . . . . . 5 6 Leg 7 | . 28 19 14 14 5 15 2 . Hover 2 | . . 7 14 14 3 . . . Device 7 | . . . . . 8 16 9 7 Storage 4 | . 14 14 14 14 5 3 . . Hackware 3 | . 9 14 14 14 5 . . . Energy Gun 3 | . . . . . 5 4 1 3 Energy Cannon 3 | . . . . . . 3 . 9 Ballistic Gun 8 | . 28 24 28 28 5 6 . 2 Ballistic Cannon 6 | . . . . . 2 12 12 10 Naked Turns . | . . . . . . . . . Heaviest Build 126 | 12 12 14 13 11 91 107 116 126 Greatest Support 70 | 20 20 20 12 12 20 35 70 70 Greatest Overweight (x) 29 | 3 . 1 1 . 29 4 5 1 Average Overweight (x) 1 | . . . 1 . 6 2 1 . Largest Inventory Capacity 20 | 8 8 8 8 8 10 20 20 15 Average Capacity 7 | 7 8 8 8 8 6 12 6 5 Most Carried 15 | 1 3 4 8 8 8 15 15 5 Average Carried 4 | . 1 3 6 8 3 7 5 4 Final Capacity 20 | 8 8 8 8 8 5 20 5 5 Final Carried 15 | 1 3 4 8 8 4 15 5 . Class Distribution -------------------- 42% | Mutant 28% | Skirmisher 13% | Derelict-Skirmisher 11% | Scavenger-Mutant 3% | Hacker-Mutant Dominant Class ---------------- Mutant | -10/Materials Mutant | -10/Mines Mutant | -10/Exiles Mutant | -9/Mines Mutant | -8/Materials Skirmisher | -7/Factory Mutant | -7/Waste Skirmisher | -7/Factory Resources | -11 -10 -10 -10 -9 -8 -7 -7 -7 ----------- Run | Scr Mat Min Exi Min Mat Fac Was Fac Matter Collected 2061 | 232 84 105 . 35 427 328 172 678 Remotely . | . . . . . . . . . Salvage Created 2975 | . 127 44 . 55 449 367 . 1933 Parts 149 | . 11 1 . 7 23 25 . 82 Haulers Intercepted 6 | . . . . . 2 1 . 3 Recyclers Shooed 1 | . 1 . . . . . . . Parts Field Recycled . | . . . . . . . . . Retrieved Matter . | . . . . . . . . . Parts Self-Destructed . | . . . . . . . . . Prevented . | . . . . . . . . . Kills | -11 -10 -10 -10 -9 -8 -7 -7 -7 ------- Run | Scr Mat Min Exi Min Mat Fac Was Fac Combat Hostiles Destroyed 64 | . 6 11 . 4 10 7 . 26 Guns 22 | . 6 2 . 4 4 2 . 4 Cannons 16 | . . . . . 1 4 . 11 AOE 26 | . . 9 . . 5 1 . 11 Classes Destroyed 21 | . 3 2 . . 7 2 . 7 Worker 2 | . . . . . 1 1 . . Builder 4 | . . . . . 1 3 . . Tunneler 1 | . . 1 . . . . . . Hauler 6 | . . . . . 2 1 . 3 Recycler 2 | . . . . . . . . 2 Mechanic 1 | . . . . . . . . 1 Operator 1 | . 1 . . . . . . . Drone 1 | . . . . . . . . 1 Watcher 1 | . . . . . 1 . . . Swarmer 17 | . 5 3 . 4 . 3 . 2 Grunt 17 | . 1 . . . 6 . . 10 Duelist 4 | . . . . . 1 . . 3 Protector 1 | . . . . . . . . 1 Sentry 4 | . . . . . 2 1 . 1 Demolisher 1 | . . . . . . . . 1 Specialist 4 | . . . . . . . . 4 Hunter 2 | . . . . . . 1 . 1 Programmer 4 | . . . . . . 2 . 2 Heavy 2 | . . . . . 1 . . 1 Assembled 8 | . . 8 . . . . . . Wasp 1 | . . . . . . . . 1 Thug 1 | . . . . . . . . 1 Savage 1 | . . . . . . . . 1 Martyr 1 | . . . . . . . . 1 Best Kill Streak 8 | . 4 7 . 4 7 3 . 8 Combat Bots Only 7 | . 4 7 . 4 6 3 . 7 Max Kills in Single Turn 4 | . 1 4 . 2 2 1 . 4 Gunslinging . | . . . . . . . . . Exploded 4 | . . 3 . . 1 1 . 4 Melee . | . . . . . . . . . Uniques/NPCs Destroyed . | . . . . . . . . . Combat | -11 -10 -10 -10 -9 -8 -7 -7 -7 -------- Run | Scr Mat Min Exi Min Mat Fac Was Fac Damage Taken 5501 | . 166 306 . 60 1461 685 122 2701 Core 1168 | . 36 68 . 19 344 165 76 460 Absorbed by Shields . | . . . . . . . . . Reduced by Siege Mode 112 | . . . . . . . . 112 Core Remaining (%) 62 | 100 . . . 50 37 . . . Volleys Fired 148 | . 23 14 . 5 33 22 1 50 Largest 4 | . 2 2 . 2 2 4 3 4 Hottest 297 | . 40 40 . 44 68 212 . 297 Shots Fired 337 | . 46 24 . 10 60 73 3 121 Gun 182 | . 46 20 . 10 46 25 . 35 Cannon 123 | . . . . . 4 48 . 71 Launcher 32 | . . 4 . . 10 . 3 15 Special . | . . . . . . . . . Kinetic 226 | . 46 20 . 10 50 47 . 53 Thermal 47 | . . . . . . 8 . 39 Explosive 22 | . . 4 . . 10 . 3 5 Electromagnetic 42 | . . . . . . 18 . 24 Robot Hit Streak 10 | . 5 2 . 4 7 7 2 10 Robot Miss Streak 9 | . 4 8 . 5 4 9 2 5 Penetration Max 1 | . . . . . . . . 1 Secondary Targets 3 | . 1 1 . 1 . . . . Max Gunslinging Chain 1 | . 1 1 . 1 . . . . Shots Hit Robots 197 | . 25 5 . 7 45 52 1 62 Core Hits 167 | . 13 23 . 4 46 24 . 57 Critical Kills 9 | . . . . . . . . 9 Critical Parts Destroyed 8 | . . . . . . . . 8 Critical Strikes 18 | . . . . . . 1 . 17 Burn 1 | . . . . . . 1 . . Destroy 17 | . . . . . . . . 17 Melee Attacks . | . . . . . . . . . Impact . | . . . . . . . . . Slashing . | . . . . . . . . . Piercing . | . . . . . . . . . Sneak Attacks . | . . . . . . . . . Combat Hostiles . | . . . . . . . . . Follow-up Attacks . | . . . . . . . . . Damage Inflicted 6623 | . 202 474 . 116 1373 1099 186 3173 Guns 1765 | . 202 44 . 116 592 358 . 453 Cannons 1947 | . . . . . 114 465 24 1344 Explosions 2907 | . . 430 . . 667 276 162 1372 Melee . | . . . . . . . . . Ramming 4 | . . . . . . . . 4 Kinetic 2328 | . 202 44 . 116 706 450 . 810 Thermal 1423 | . . . . . . 346 . 1077 Explosive 1872 | . . 430 . . 667 . 162 613 Electromagnetic 972 | . . . . . . 303 . 669 Impact 24 | . . . . . . . 24 . Slashing . | . . . . . . . . . Piercing . | . . . . . . . . . Highest Corruption 10 | . . . . . . 3 3 10 Average Corruption 3 | . . . . . . 2 3 3 Corruption Purged . | . . . . . . . . . Corruption Blocked . | . . . . . . . . . Effects 76 | . . . . . . 10 13 53 Message Errors 21 | . . . . . . 5 2 14 Matter Fused 20 | . . . . . . 2 3 15 Heat Flow Errors 11 | . . . . . . . 3 8 Energy Discharges 6 | . . . . . . . 2 4 Parts Rejected 1 | . . . . . . . . 1 Data Loss (minor) 5 | . . . . . . 1 . 4 Data Loss (major) 7 | . . . . . . . 2 5 Misfires 2 | . . . . . . 1 . 1 Alerts 2 | . . . . . . . 1 1 Weapon Failures 1 | . . . . . . 1 . . Overload Shots . | . . . . . . . . . Overflow Damage 264 | . . . . . 20 199 5 40 Projectiles 39 | . . . . . . . . 39 Explosions 225 | . . . . . 20 199 5 1 Melee . | . . . . . . . . . Knockbacks 11 | . . . . . 2 4 . 5 Impact . | . . . . . . . . . Kinetic 10 | . . . . . 2 4 . 4 Secondary 1 | . . . . . . . . 1 Self-Inflicted Damage 296 | . . 34 . . 69 66 67 60 Shots 10 | . . 2 . . 3 1 3 1 Rammed 1 | . . . . . . . . 1 Targets Rammed 1 | . . . . . . . . 1 Kicked . | . . . . . . . . . Crushed . | . . . . . . . . . Highest Temperature 664 | . . 25 . 6 452 357 228 664 Average Temperature 143 | . . 16 . 4 142 128 95 156 Received Heat Transfer 1728 | . . 60 . . 603 72 . 993 Effects 17 | . . . . . 1 2 . 14 Shutdowns 4 | . . . . . 1 . . 3 Energy Bleed 1 | . . . . . . 1 . . Interference 2 | . . . . . . . . 2 Matter Decay 1 | . . . . . . . . 1 Short Circuit 3 | . . . . . . . . 3 Damage (minor) 3 | . . . . . . 1 . 2 Damage (major) 2 | . . . . . . . . 2 Damage (core) 1 | . . . . . . . . 1 Siege Activations 8 | . . . . . . . 1 7 Total Turns 130 | . . . . . . . 5 125 Longest Duration 43 | . . . . . . . 5 43 Robots Corrupted . | . . . . . . . . . Combat Hostiles . | . . . . . . . . . Parts Fried 4 | . . . . . . 4 . . Impact Corruptions . | . . . . . . . . . Robots Melted . | . . . . . . . . . Combat Hostiles . | . . . . . . . . . Parts Melted 2 | . . . . . . . . 2 Heat Transferred 522 | . . . . . . 322 . 200 Parts Sabotaged . | . . . . . . . . . Parts Stolen . | . . . . . . . . . Parts Stripped . | . . . . . . . . . Power Chain Reactions 3 | . . . . . . . . 3 Missiles Intercepted . | . . . . . . . . . Alert | -11 -10 -10 -10 -9 -8 -7 -7 -7 ------- Run | Scr Mat Min Exi Min Mat Fac Was Fac Peak Influence 1933 | . 180 193 . 80 231 268 106 1933 Initial 91 | . . 70 . . 31 . 91 . Average 304 | . 95 56 . 78 52 90 11 824 Maximum Alert Level 5 | . . . . . 1 1 . 5 Low Security (%) 68 | 100 100 100 . 100 98 74 100 15 Level 1 9 | . . . . . 1 25 . 14 Level 2 8 | . . . . . . . . 27 Level 3 . | . . . . . . . . 2 Level 4 8 | . . . . . . . . 27 Level 5 3 | . . . . . . . . 11 High Security . | . . . . . . . . . Max Security . | . . . . . . . . . Squads Dispatched 31 | . 2 . . . 5 4 . 20 Investigation 1 | . . . . . . . . 1 Extermination 8 | . . . . . . 3 . 5 Reinforcement 14 | . 2 . . . 5 1 . 6 Assault 7 | . . . . . . . . 7 Garrison 1 | . . . . . . . . 1 Intercept . | . . . . . . . . . Searches Triggered . | . . . . . . . . . Construction Impeded 5 | . . . . . 2 1 . 2 Haulers Reinforced . | . . . . . . . . . Active Scanning Responses . | . . . . . . . . . Cargo Convoy Interrupts 1 | . . . . . . . . 1 Stealth | -11 -10 -10 -10 -9 -8 -7 -7 -7 --------- Run | Scr Mat Min Exi Min Mat Fac Was Fac Distress Signals 5 | . 2 . . . 2 . . 1 Communications Jammed . | . . . . . . . . . Distress Signals . | . . . . . . . . . Times Spotted 161 | . 8 12 . 2 22 13 5 99 Peak Tracking Total 16 | . 3 9 . 2 5 4 5 16 Tactical Retreats 11 | . 2 . . . . 7 . 2 Traps | -11 -10 -10 -10 -9 -8 -7 -7 -7 ------- Run | Scr Mat Min Exi Min Mat Fac Was Fac Traps Triggered 2 | . . . . . . 1 . 1 Indirectly . | . . . . . . . . . Trap Hack Attempts . | . . . . . . . . . Triggered . | . . . . . . . . . Disarmed . | . . . . . . . . . Reprogrammed . | . . . . . . . . . Reused . | . . . . . . . . . Traps Extracted . | . . . . . . . . . Installed . | . . . . . . . . . Triggered . | . . . . . . . . . Machines | -11 -10 -10 -10 -9 -8 -7 -7 -7 ---------- Run | Scr Mat Min Exi Min Mat Fac Was Fac Machines Disabled 38 | . . . . . 4 5 . 29 Max in Single Turn 5 | . . . . . 2 5 . 2 Machines Sabotaged . | . . . . . . . . . Garrisons Compromised . | . . . . . . . . . Overloaded Fab Kills . | . . . . . . . . . Hacking | -11 -10 -10 -10 -9 -8 -7 -7 -7 --------- Run | Scr Mat Min Exi Min Mat Fac Was Fac Machines Accessed 10 | . . . 1 . 3 . . 6 Terminals 9 | . . . . . 3 . . 6 Fabricators . | . . . . . . . . . Repair Stations . | . . . . . . . . . Recycling Units . | . . . . . . . . . Scanalyzers . | . . . . . . . . . Garrison Access . | . . . . . . . . . Total Hacks 19 | . . . 1 . 7 . . 11 Successful 3 | . . . 1 . 2 . . . Failed 16 | . . . . . 5 . . 11 Catastrophic 6 | . . . . . . . . 6 Database Lockouts . | . . . . . . . . . Manual 18 | . . . 1 . 6 . . 11 Terminals 18 | . . . . . 7 . . 11 Fabricators . | . . . . . . . . . Repair Stations . | . . . . . . . . . Recycling Units . | . . . . . . . . . Scanalyzers . | . . . . . . . . . Garrison Access . | . . . . . . . . . Terminal Hacks 3 | . . . 1 . 2 . . . Record 1 | . . . . . 1 . . . Branch Access Points 1 | . . . . . 1 . . . EX-Prototype ID Bank 1 | . . . 1 . . . . . Fabricator Hacks . | . . . . . . . . . Repair Station Hacks . | . . . . . . . . . Recycling Unit Hacks . | . . . . . . . . . Scanalyzer . | . . . . . . . . . Garrison Access Hacks . | . . . . . . . . . Unauthorized Hacks . | . . . . . . . . . Terminals . | . . . . . . . . . Fabricators . | . . . . . . . . . Repair Stations . | . . . . . . . . . Recycling Units . | . . . . . . . . . Scanalyzers . | . . . . . . . . . Garrison Access . | . . . . . . . . . Data Cores Recovered 1 | . . . . . . . . 1 Used . | . . . . . . . . . Hacking Detections 9 | . . . . . 3 . . 6 Full Trace Events 1 | . . . . . . . . 1 Feedback Events . | . . . . . . . . . Feedback Blocked . | . . . . . . . . . Robot Schematics Acquired . | . . . . . . . . . Robots Built . | . . . . . . . . . Authchips . | . . . . . . . . . Time . | . . . . . . . . . Total Robot Build Rating . | . . . . . . . . . Part Schematics Acquired . | . . . . . . . . . Parts Built . | . . . . . . . . . Authchips . | . . . . . . . . . Time . | . . . . . . . . . Total Part Build Rating . | . . . . . . . . . Parts Repaired . | . . . . . . . . . Time . | . . . . . . . . . Parts Recycled . | . . . . . . . . . Recycled Matter . | . . . . . . . . . Retrieved Matter . | . . . . . . . . . Retrieved Components . | . . . . . . . . . Parts Scanalyzed . | . . . . . . . . . Part Schematics Acquired . | . . . . . . . . . Parts Damaged . | . . . . . . . . . Bothacking | -11 -10 -10 -10 -9 -8 -7 -7 -7 ------------ Run | Scr Mat Min Exi Min Mat Fac Was Fac Used RIF Installer . | . . . . . . . . . Robots Hacked . | . . . . . . . . . Non-combat . | . . . . . . . . . Combat . | . . . . . . . . . Robot Hacks Applied . | . . . . . . . . . Relay Couplers Released . | . . . . . . . . . Fabnet Peak Effective % . | . . . . . . . . . Robots Rewired . | . . . . . . . . . Allies Hacked 1 | . . . . . . . . 1 Hacks Repelled . | . . . . . . . . . Allies | -11 -10 -10 -10 -9 -8 -7 -7 -7 -------- Run | Scr Mat Min Exi Min Mat Fac Was Fac Total Allies 21 | . . . . 3 . . 18 . Largest Group 18 | . . . . 3 3 . 18 18 Highest-Rated Group 434 | . . . . 40 40 . 434 434 Highest-Rated Ally 35 | . . . . 16 16 . 35 35 Total Orders 4 | . . . . . 2 . 1 1 STAY 1 | . . . . . 1 . . . RETURN 3 | . . . . . 1 . 1 1 Ally Attacks 483 | . . . . . 40 . 169 274 Total Damage 11943 | . . . . . 761 . 3055 8127 Kills 88 | . . . . . 10 . 6 72 Allies Corrupted . | . . . . . . . . . Allies Melted . | . . . . . . . . . Intel | -11 -10 -10 -10 -9 -8 -7 -7 -7 ------- Run | Scr Mat Min Exi Min Mat Fac Was Fac Robot Analysis Total . | . . . . . . . . . Derelict Logs Recovered 2 | . . 1 . 1 . . . . Drone Launches 63 | . . . . . 5 . 31 27 Drone Recoveries 33 | . . . . . 2 . 24 7 Exploration | -11 -10 -10 -10 -9 -8 -7 -7 -7 ------------- Run | Scr Mat Min Exi Min Mat Fac Was Fac Turns Passed 9871 | 68 198 900 625 144 2575 1475 912 2974 Spaces Moved 3520 | 40 102 579 389 114 458 406 334 1098 Core 99 | 9 . . . . 82 . . 8 Treads 1375 | . . . . . . . 285 1090 Legs 1074 | 31 102 279 . . 207 406 49 . Wheels . | . . . . . . . . . Hover 972 | . . 300 389 114 169 . . . Flight . | . . . . . . . . . Fastest Speed 50 | 50 120 90 160 90 80 195 120 50 Average Speed 239 | 145 120 140 160 90 459 304 251 231 Slowest Speed 1500 | 200 120 190 160 90 1500 400 470 240 Overloaded Moves . | . . . . . . . . . Propulsion Burnouts . | . . . . . . . . . Robots Hopped . | . . . . . . . . . Cave-ins Triggered . | . . . . . . . . . Exploration Rate (%) 46 | 3 18 97 81 31 38 9 96 41 Regions Visited 8 Branch Regions 3 Pre-discovered Areas 2 | . . 1 . 1 . . . . Known Exits Taken 1 | . . . . . 1 . . . Unknown Exits Taken 5 | 1 1 1 1 1 . . . . Scrap Searched 1 | . . 1 . . . . . . Spaces Dug 23 | . . . . . . . . 23 Terrain Destroyed 212 | . . 22 . . 39 36 12 103 Melee . | . . . . . . . . . Projectile 25 | . . . . . . . . 25 AOE 187 | . . 22 . . 39 36 12 78 Terrain Rammed . | . . . . . . . . . Walls Destroyed . | . . . . . . . . . Machines Disabled . | . . . . . . . . . Actions | -11 -10 -10 -10 -9 -8 -7 -7 -7 --------- Run | Scr Mat Min Exi Min Mat Fac Was Fac Total 4689 | 47 140 646 393 145 870 604 404 1440 Wait 883 | . 13 46 . 26 346 148 47 257 Move 3513 | 39 101 578 388 113 457 406 333 1098 Hop . | . . . . . . . . . Pick Up 25 | 2 2 1 2 . 4 10 1 3 Fast Attach 56 | 5 1 3 . 1 20 5 10 11 Attach 12 | 1 . . . . 1 4 . 6 Detach 5 | . . . . . . 1 3 1 Swap 10 | . . 2 . . . 3 4 1 Drop 34 | . . 2 3 . 9 5 5 10 Fire 148 | . 23 14 . 5 33 22 1 50 Melee . | . . . . . . . . . Ram . | . . . . . . . . . Kick . | . . . . . . . . . Crush 1 | . . . . . . . . 1 Escape Stasis 2 | . . . . . . . . 2 Rewire . | . . . . . . . . . Trap . | . . . . . . . . . Miscellaneous . | . . . . . . . . . Route ------- -11/Scrapyard -10/Materials -10/Mines (discovered 3 exits: [*Mat x2] / *Exi) -10/Exiles -9/Mines -8/Materials (discovered 2 exits: *Fac x2) -7/Factory -7/Waste -7/Factory (discovered 1 exit: [*Low]) History --------- Turn | Location | Event 14 | -11/Scrapyard | Discovered new exit (range 15) 69 | -11/Scrapyard | Entered Materials 126 | -10/Materials | Discovered new exit (range 15) 267 | -10/Materials | Entered Mines 317 | -10/Mines | Build established: Mutant 447 | -10/Mines | Discovered new exit (range 15) 564 | -10/Mines | Assembled infested the area 621 | -10/Mines | Received a Rocket Launcher from a helpful Derelict 637 | -10/Mines | Destroyed 7 combat bots 676 | -10/Mines | A weapon hastily lodged in a ceiling crevice suddenly fell to the ground 843 | -10/Mines | Discovered new exit (range 9) 1159 | -10/Mines | Deemed a non-threat by the Exiles lab entrance 1160 | -10/Mines | Discovered new exit (range 5) 1167 | -10/Mines | Entered Exiles 1204 | -10/Exiles | Met 8R-AWN 1233 | -10/Exiles | Met EX-HEX 1283 | -10/Exiles | Met EX-BIN 1302 | -10/Exiles | Aligned with FarCom system 1303 | -10/Exiles | Given EX-Vault access code 1347 | -10/Exiles | Opened EX-Vault 1362 | -10/Exiles | Found Army-in-a-Box 1397 | -10/Exiles | Warned to stay clear of 0b10 Research branches 1440 | -10/Exiles | Met EX-DEC 1490 | -10/Exiles | Visited The Gauntlet 1773 | -10/Exiles | Discovered new exit (range 14) 1792 | -10/Exiles | Left Exiles lab with Army-in-a-Box 1792 | -10/Exiles | Entered Mines 1840 | -9/Mines | Assisted by bots powering up and referring to "LRC-V3" 1891 | -9/Mines | Discovered new exit (range 5) 1936 | -9/Mines | Entered Materials 1936 | -8/Materials | Accompanied by 3 allies 1936 | -8/Materials | Evolved 4 slots: Utility x4 2409 | -8/Materials | Build established: Hacker-Mutant 2723 | -8/Materials | Discovered new exit (range 14) 2732 | -8/Materials | Lost 4 parts (1p2n1w) 2760 | -8/Materials | Core integrity fell below 50% 2761 | -8/Materials | Identified exit to Factory 2824 | -8/Materials | Lost 7 parts (1n2u4w) 3046 | -8/Materials | Build established: Mutant 3694 | -8/Materials | Discovered exit to Factory (range 16) 4131 | -8/Materials | Build established: Scavenger-Mutant 4511 | -8/Materials | Entered Factory 4511 | -7/Factory | Evolved 2 slots: Weapon x2 5058 | -7/Factory | Build established: Skirmisher 5986 | -7/Factory | Sucked down chute 5986 | -7/Factory | Entered Waste 6008 | -7/Waste | Spotted C-40 Crusher 6008 | -7/Waste | Spotted C-40 Crusher 6058 | -7/Waste | Spotted C-40 Crusher 6071 | -7/Waste | Spotted C-40 Crusher 6082 | -7/Waste | Crushed by Compactor (1 part destroyed, 2 dropped) 6083 | -7/Waste | Spotted C-40 Crusher 6083 | -7/Waste | Spotted C-40 Crusher 6111 | -7/Waste | Allies destroyed C-40 Crusher 6114 | -7/Waste | Lost 3 parts (1p2u) 6121 | -7/Waste | Allies destroyed C-40 Crusher 6124 | -7/Waste | Allies destroyed C-40 Crusher 6131 | -7/Waste | Allies destroyed C-40 Crusher 6134 | -7/Waste | Allies destroyed C-40 Crusher 6143 | -7/Waste | Allies destroyed C-40 Crusher 6383 | -7/Waste | Build established: Mutant 6477 | -7/Waste | Warlord forces began an assault 6746 | -7/Waste | Discovered new exit (range 19) 6809 | -7/Waste | Build established: Derelict-Skirmisher 6898 | -7/Waste | Entered Factory 6898 | -7/Factory | Accompanied by 18 allies 7792 | -7/Factory | Cargo convoy interrupted 7811 | -7/Factory | Core integrity fell below 50% 8160 | -7/Factory | Build established: Skirmisher 8498 | -7/Factory | First assault squad dispatched 8867 | -7/Factory | Garrison activated, responded to threat 9557 | -7/Factory | Destroyed 7 combat bots 9816 | -7/Factory | Destroyed 7 combat bots 9852 | -7/Factory | System corruption reached 10% 9866 | -7/Factory | Core integrity fell below 20% 9869 | -7/Factory | Discovered new exit (range 11) 9872 | -7/Factory | Destroyed by Y-54 Guardian with Gatling Laser Last Messages --------------- 09850_ Hvy. Missile Launcher destroyed. 09851_ Integrated Corrupted Imp. Heat Sink (+6). 09851_ Neutron Cannon destroyed. 09852_ Med. Reactive Plating destroyed. 09854_ Imp. Lightning Gun destroyed. 09854_ U-05 Engineer lays Concrete. 09854_ U-05 Engineer destroyed. 09855_ G-47 Trooper suffers critical hit (Burn). 09855_ Gauss Rifle destroyed. 09856_ Ended siege mode. 09857_ Imp. Heat Sink destroyed. 09857_ Critical hit (Burn: +37). 09863_ The unstable cave ceiling collapses. 09863_ Critical hit (Burn: +37). 09866_ Hvy. Treads destroyed. 09867_ Dropped Lrg. Storage Unit. 09869_ EXIT=FOUND 09871_ Penetrated by Slug. 09871_ Knocked back. [Achievement: Tester] Map ----- +----------------------------------------------------+ | ??????????????????????????????????????????????? | | ??????????????????????????????????????????????? | | ??????????????????????????????????????????????? | | ??????????????????????????????????????????????? | | ???#########??????????????????????????????????? | | ???# ???????????? ?????????????????????? | | ???# """" #??????????? #????????????????????? | | ???# """" #?????????? #????????????????????? | | ???# """" #?????????? #????????????????????? | | ???# """" #????????? #????????????????????? | | ???# """" #????????? ##???????????????????? | | ???# """" #?????????[ #???????????????????? | | ???# """" #?????????xx ##???????????????????? | | ???# #??????!#%%% #???????????????????? | | #########+############*! #???????????????????? | | "%" ! ]%=%!#????????????????????? | | " ! g *%= ##???????????????????? | | i #???????????????????? | | #########+###### # g ##???????????????????? | | #???# ## g ###???????????????????? | | #???# """"""" #### #gg #?????????????????????? | | ##### """"""" #??###g"###?????????????????????? | | + """"""" #????#!##???????????????????????? | | ##### """"""" #??###g###???????? #??????????? | | ###?# #??#! l ##### #??????????? | | #?# """ """ #??# Y! @ #??????????? | | #?# """T""" + g g % H< =#??????????? | | #?############## u #??????????? | | #??????????????# ##### #??????????? | | #??????????????###+###???? #??????????? | | #???????????????? ???????# ###??????????? | | ###????????????????] g??????? #????????????? | | ??????????????????? ????????? #????????????? | | ?????????????????? ?????????? #????????????? | | ??????????????????" ""??????????? ????????????? | | ??????????????????"F""???????????? ???????????? | | ??????????????????""??????????????? ??????????? | | ??????????????????????????????????????????????? | | ??????????????????????????????????????????????? | | ??????????????????????????????????????????????? | | ??????????????????????????????????????????????? | | ??????????????????????????????????????????????? | | ??????????????????????????????????????????????? | | ??????????????????????????????????????????????? | | ??????????????????????????????????????????????? | | ??????????????????????????????????????????????? | | ??????????????????????????????????????????????? | | | | | | | +----------------------------------------------------+ Best States ------------- Heat Dissipation 48 Energy Generation 16 Energy Capacity 290 Matter Stores 300 Matter Capacity 300 Sight Range 16 Terrain Scan Density 10 Armor Coverage 450 Resistance: KI 30 Weapon Cycling 15 Evasion (%) 55 Recoil Reduction 4 Matter Filtering 30 Offensive Hacking 20 Item Schematics ----------------- None Robot Schematics ------------------ None Fabricated ------------ Nothing Alien Tech Used ----------------- None Achievements -------------- Tester Challenges ------------ None Game ------ Seed ChargeAssembledBarrier Manual? 0 Play Time 01:00:44 Cumulative 73.0 hours Start 2022.05.19 @ 20:04:32 End 2022.05.19 @ 22:29:22 Sessions 1 Manual Loads 0 Difficulty Rogue Special Mode None Game No. 82 Rogue 82 Adventurer 0 Explorer 0 Win Type - Total 0 Types 0/0/0/0/0/0/0/0/0 Lore% 40 Gallery% 50 Achievement% 38 Wizard Run 0 Options --------- ASCII 0 Keyboard 0 Movement Mouse Keybinds 0 Fullscreen 1 Font 18/SmallcapsGlow Map View 76x50 Tactical HUD 1 Map Filters NONE Filters NONE Steam 1 RUN: ecd9f434-99c3-4022-9f9f-7a513b2fae57